bitfinex-derivatives/quotes_ETHF0:USTF0_20241007
["timestamp","ask_amount","ask_price","bid_price","bid_amount"]
[1728310777056,3.2078,2502.8,2502.7,0.39962]
[1728310777261,3.2078,2503.1,2502.4,4.37758037]
[1728310777463,3.2078,2503.1,2503.0,0.39958]
[1728310777666,3.2078,2503.5,2502.7,9.70663037]
[1728310777860,0.39952,2503.4,2502.7,4.33]
[1728310778165,0.39954,2503.2,2503.0,0.39957]
[1728310778368,3.60734,2503.2,2503.0,0.39957]
[1728310778561,0.3996,2502.9,2502.7,0.39961]
[1728310778756,3.2078,2502.9,2502.2,0.5702]
[1728310778966,3.6074,2502.9,2502.3,0.39969]
[1728310779165,3.2078,2502.5,2502.3,4.37817415]
[1728310779462,3.2078,2502.5,2501.8,5.32941]
[1728310779463,0.39974,2502.0,2501.7,3.2078]
[1728310779662,3.2078,2502.0,2501.3,3.778]
[1728310779964,0.5357,2502.3,2501.5,4.59127333]
[1728310780156,0.5357,2502.3,2501.5,8.92127333]
[1728310780466,3.2078,2502.4,2501.6,8.79857333]
[1728310780659,0.39969,2502.3,2502.0,0.39973]
[1728310780859,0.9991,2502.7,2502.4,0.39966]
[1728310780860,0.39963,2502.7,2502.4,0.39966]
[1728310781062,3.7435,2502.8,2502.2,4.33]
[1728310781461,4.14311,2502.8,2502.2,4.33]
[1728310781663,3.7435,2502.8,2502.2,5.32924]
[1728310782159,3.2078,2503.4,2502.3,8.16931589]
[1728310782466,3.2078,2503.4,2502.9,0.39958]
[1728310782467,0.39955,2503.2,2502.9,0.39958]
[1728310782662,3.2078,2503.4,2502.5,0.99915]
[1728310782863,3.2078,2503.1,2502.3,4.17331589]
[1728310783062,3.2078,2503.1,2502.4,0.99918]
[1728310783262,3.775,2503.5,2502.6,0.99908]
[1728310783468,3.775,2503.5,2503.2,0.39954]
[1728310783668,3.775,2503.5,2503.4,0.39951]
[1728310783860,3.775,2503.5,2502.8,5.32903]
[1728310784167,3.775,2503.5,2503.4,0.39951]
[1728310784466,0.39952,2503.4,2503.1,0.39955]
[1728310784672,3.775,2503.5,2503.2,0.39954]
[1728310784673,4.17451,2503.5,2503.2,0.39954]
[1728310784868,0.39952,2503.4,2503.2,0.39954]
[1728310785071,3.775,2503.5,2502.8,4.62986441]
[1728310785262,3.775,2503.5,2502.7,1.55956]
[1728310785466,3.775,2503.5,2502.7,0.5605]
[1728310785664,0.39952,2503.4,2503.2,0.39954]
[1728310786069,3.775,2503.5,2503.4,0.39951]
[1728310786263,3.2078,2503.5,2503.4,0.39951]
[1728310786458,3.2078,2503.5,2503.2,0.39954]
[1728310786766,3.2078,2503.5,2503.4,0.39951]
[1728310786963,3.2078,2503.5,2503.2,4.50188866]
[1728310787164,3.2078,2503.5,2502.8,4.8708]
[1728310787565,0.5593,2504.1,2502.9,4.18748621]
[1728310787566,3.2078,2503.9,2502.9,4.18748621]
[1728310787772,0.39947,2503.7,2503.5,0.39949]
[1728310787965,3.2078,2503.9,2503.7,0.39946]
[1728310787966,3.60724,2503.9,2503.7,0.39946]
[1728310788269,3.2078,2503.9,2503.7,0.39945]
[1728310788469,3.2078,2503.9,2503.8,0.39945]
[1728310790666,0.5529,2504.4,2503.5,4.33]
[1728310790860,3.2078,2504.5,2504.4,0.39935]
[1728310791569,3.2078,2504.8,2504.7,0.3993]
[1728310792273,3.2078,2505.7,2505.6,0.39916]
[1728310792474,8.19689,2505.7,2504.9,4.33]
[1728310792670,0.39918,2505.6,2505.3,0.3992]
[1728310792864,3.607,2505.4,2505.1,0.39923]
[1728310793174,3.607,2505.4,2504.6,4.33]
[1728310793175,4.20581,2505.4,2504.8,4.62416314]
[1728310793368,4.20581,2505.4,2504.3,4.20619]
[1728310793369,3.2078,2505.1,2504.3,7.5378]
[1728310793674,0.5571,2505.9,2504.2,0.39937]
[1728310793675,0.39934,2504.5,2504.2,0.39937]
[1728310793975,0.39942,2504.0,2503.5,4.33]
[1728310794171,3.2078,2504.0,2503.5,4.33]
[1728310794468,0.99843,2504.3,2503.6,0.19773222]
[1728310794469,3.2078,2504.3,2503.6,0.19773222]
[1728310794774,3.2078,2504.3,2503.7,0.99867]
[1728310794963,0.39934,2504.5,2504.2,0.39938]
[1728310795270,0.39941,2504.1,2503.8,4.50025807]
[1728310795569,3.2078,2504.3,2503.6,4.33]
[1728310795771,0.3994,2504.2,2503.9,0.39943]
[1728310795961,0.39941,2504.1,2503.8,0.39943]
[1728310796269,3.2078,2504.3,2503.9,0.39943]
[1728310796270,0.39938,2504.2,2503.9,0.39943]
[1728310796470,0.39939,2504.2,2503.6,4.33]
[1728310796673,3.2078,2504.3,2503.6,4.33]
[1728310796674,3.60718,2504.3,2503.6,5.32868]
[1728310796870,0.39939,2504.2,2503.9,0.39943]
[1728310797063,0.3994,2504.1,2503.9,0.39943]
[1728310797263,3.2078,2504.3,2503.9,0.39942]
[1728310797264,0.3994,2504.2,2503.9,0.39942]
[1728310797468,3.2078,2504.3,2503.2,4.9099]
[1728310797671,3.2078,2504.0,2503.9,0.39943]
[1728310798881,3.2078,2504.0,2503.9,4.72943]
[1728310799388,3.2078,2504.9,2504.4,0.39934]
[1728310799675,3.2078,2504.6,2504.0,0.99852]
[1728310799868,3.2078,2504.6,2504.5,0.39934]
[1728310800269,3.2078,2504.6,2503.9,5.411]
[1728310800270,0.39935,2504.5,2504.2,0.39937]
[1728310800470,0.5433,2505.1,2504.2,5.32845]
[1728310800674,3.2078,2505.3,2504.8,0.39929]
[1728310800873,0.99779,2505.9,2505.6,0.39916]
[1728310800874,3.2078,2505.7,2505.6,0.39916]
[1728310801175,3.2078,2505.7,2505.2,4.72921]
[1728310801363,3.2078,2505.7,2504.9,4.29485129]
[1728310801364,0.39917,2505.6,2504.9,4.33]
[1728310801569,3.2078,2505.7,2505.0,0.39926]
[1728310801570,0.39919,2505.5,2505.0,0.39926]
[1728310801768,3.2078,2505.3,2505.0,4.29485129]
[1728310801970,0.39928,2504.9,2504.7,0.544]
[1728310802169,3.2078,2505.0,2504.3,4.33]
[1728310802373,3.2078,2505.0,2504.8,0.39928]
[1728310802571,3.2078,2505.7,2504.6,4.33]
[1728310802872,3.2078,2505.1,2504.8,4.40161258]
[1728310803074,0.3993,2504.8,2504.5,0.39933]
[1728310803282,0.3993,2504.8,2504.2,4.33]
[1728310803283,3.2078,2504.8,2504.2,4.33]
[1728310803475,4.20607,2504.7,2504.0,0.544]
[1728310803773,4.20607,2504.7,2502.8,1.99798]
[1728310803774,3.2078,2504.1,2503.5,4.33]
[1728310803974,3.2078,2504.1,2503.2,0.99885]
[1728310803975,3.2078,2504.1,2503.3,1.0484]
[1728310804171,3.60729,2503.6,2503.3,0.5111]
[1728310804371,3.2078,2503.6,2502.9,4.33]
[1728310804767,3.2078,2503.6,2503.0,4.57343594]
[1728310804972,3.2078,2504.1,2503.5,4.33]
[1728310805584,3.2078,2504.4,2504.1,0.39939]
[1728310805774,3.2078,2504.4,2503.9,4.33]
[1728310806082,3.60715,2504.4,2503.9,4.72943]
[1728310806277,0.93283,2504.6,2504.0,0.3994]
[1728310806472,3.2078,2504.5,2503.9,4.33]
[1728310806792,3.2078,2505.2,2504.2,4.33]
[1728310806976,3.2078,2505.2,2504.0,12.55480012]
[1728310806977,3.2078,2504.6,2504.0,4.86495012]
[1728310807175,0.39939,2504.2,2503.7,0.39946]
[1728310807374,3.2078,2504.3,2503.6,4.8618]
[1728310807776,3.2078,2504.3,2504.0,0.39941]
[1728310807978,3.2078,2504.3,2503.7,5.01321309]
[1728310808169,0.39941,2504.1,2503.7,0.39946]
[1728310808485,3.2078,2504.2,2503.6,4.8618]
[1728310808675,3.2078,2504.2,2504.1,0.3994]
[1728310808878,0.5265,2504.9,2504.1,6.0]
[1728310809178,3.2078,2504.8,2504.6,0.39931]
[1728310809377,3.2078,2504.8,2504.3,4.33]
[1728310809581,3.2078,2504.8,2504.4,0.39935]
[1728310809582,0.39931,2504.7,2504.4,0.39935]
[1728310809881,3.2078,2504.8,2504.3,4.33]
[1728310810185,3.2078,2505.3,2504.7,4.33]
[1728310810479,0.16267197,2506.4,2504.4,9.19735]
[1728310810480,0.202,2506.0,2505.8,0.39912]
[1728310810670,0.39906,2506.3,2505.6,4.33]
[1728310810870,3.2078,2506.6,2505.6,4.33]
[1728310811069,1.19931,2507.2,2505.4,3.2078]
[1728310811070,3.2078,2506.9,2506.0,4.33]
[1728310811272,3.2078,2506.9,2506.4,0.39903]
[1728310811671,3.2078,2506.9,2506.3,4.33]
[1728310811881,0.39901,2506.6,2506.0,0.39909]
[1728310812179,3.2078,2506.1,2505.3,4.33]
[1728310812385,3.2078,2506.4,2505.3,4.33]
[1728310812676,0.39909,2506.1,2505.3,8.80131742]
[1728310812873,0.39909,2506.1,2505.6,0.39915]
[1728310813068,1.0833,2506.3,2505.4,3.2078]
[1728310813273,0.39907,2506.2,2505.8,0.39912]
[1728310813474,1.0833,2506.3,2505.4,3.2078]
[1728310813475,1.0833,2506.3,2505.5,4.33]
[1728310813672,1.0833,2506.3,2506.0,0.39909]
[1728310813977,1.48236,2506.3,2505.9,0.3991]
[1728310814172,0.39907,2506.2,2505.8,0.39912]
[1728310814373,1.0833,2506.3,2506.0,0.39909]
[1728310814777,5.0737,2506.3,2505.5,4.33]
[1728310814983,5.0737,2506.3,2506.0,0.3991]
[1728310814984,1.48236,2506.3,2506.0,0.3991]
[1728310815178,0.39907,2506.2,2505.9,0.39911]
[1728310815373,1.0833,2506.3,2506.0,0.39908]
[1728310815575,1.48236,2506.3,2506.0,0.39908]
[1728310815777,1.48236,2506.3,2505.9,0.39911]
[1728310815778,0.39907,2506.2,2505.9,0.39911]
[1728310815975,1.48236,2506.3,2506.0,0.39909]
[1728310816177,1.0833,2506.3,2505.5,4.33]
[1728310816375,1.0833,2506.3,2504.9,1.99637]
[1728310816376,3.2078,2505.8,2504.9,3.2078]
[1728310816568,3.2078,2505.8,2505.2,4.33]
[1728310816775,0.39913,2505.9,2505.6,0.39916]
[1728310816975,44.5171,2506.2,2505.2,4.33]
[1728310817173,3.7171,2506.2,2506.0,0.39909]
[1728310817374,0.5093,2506.2,2506.1,0.39908]
[1728310817581,0.39899,2506.7,2506.5,0.39901]
[1728310817779,1.0515,2506.9,2505.9,4.33]
[1728310817981,0.39902,2506.5,2506.3,0.39904]
[1728310818180,0.39903,2506.5,2506.3,0.39905]
[1728310818488,3.9896,2506.5,2505.9,4.33]
[1728310818674,3.2078,2506.7,2506.4,0.39903]
[1728310818875,3.2078,2506.7,2505.9,5.32776]
[1728310818876,3.2078,2506.7,2506.2,0.39906]
[1728310819082,3.2078,2506.7,2505.9,4.33]
[1728310819083,0.39903,2506.5,2506.3,0.39905]
[1728310819276,0.39903,2506.5,2505.9,4.33]
[1728310819581,3.2078,2506.7,2506.1,0.99771]
[1728310819778,3.2078,2506.7,2506.5,0.39901]
[1728310819979,3.6068,2506.7,2506.0,0.99775]
[1728310820289,3.2078,2506.7,2506.0,0.99775]
[1728310820479,3.2078,2506.7,2506.6,0.399]
[1728310821389,3.2078,2507.6,2506.7,0.99747]
[1728310821577,3.2078,2507.6,2507.1,4.33]
[1728310821776,3.2078,2507.6,2507.1,0.39891]
[1728310821777,0.39889,2507.4,2507.1,0.39891]
[1728310821982,3.2078,2507.6,2506.7,7.5378]
[1728310822382,3.2078,2507.6,2507.2,0.39891]
[1728310822694,3.2078,2507.6,2507.5,0.39886]
[1728310822993,3.2078,2508.0,2507.5,13.1958]
[1728310823285,3.2078,2508.0,2507.6,4.33]
[1728310823286,0.39879,2507.9,2507.6,4.33]
[1728310823486,3.2078,2508.0,2507.6,4.33]
[1728310823788,3.60659,2508.0,2507.6,4.72884]
[1728310823985,3.60659,2508.0,2507.6,4.33]
[1728310823986,0.39879,2507.9,2507.6,4.33]
[1728310824176,3.2078,2508.0,2507.6,4.33]
[1728310824494,3.2078,2508.0,2507.9,4.33]
[1728310824990,3.2078,2508.0,2507.8,0.3988]
[1728310825189,3.2078,2508.0,2507.6,4.33]
[1728310825190,3.2078,2508.0,2507.9,0.39879]
[1728310825481,0.39872,2508.4,2507.9,0.39879]
[1728310825482,3.2078,2508.4,2508.2,0.39874]
[1728310825691,3.2078,2508.4,2507.7,4.44807722]
[1728310825882,3.2078,2507.8,2506.6,0.16161899]
[1728310826088,4.33,2507.9,2506.1,3.2078]
[1728310826089,0.99731,2507.1,2506.1,3.2078]
[1728310826291,0.399,2506.7,2506.3,0.39904]
[1728310826583,3.2078,2506.9,2505.8,7.70790974]
[1728310826784,3.2078,2506.9,2505.8,3.2078]
[1728310826785,5.2835,2506.9,2505.8,3.2078]
[1728310826991,0.39907,2506.2,2505.9,4.89921974]
[1728310827290,4.20532,2506.6,2505.8,3.2078]
[1728310827291,3.2078,2506.6,2505.8,3.2078]
[1728310827586,0.39908,2506.2,2505.9,0.39911]
[1728310827781,4.20535,2506.6,2505.5,0.5162]
[1728310827977,3.2078,2506.3,2505.5,4.84591568]
[1728310828184,3.2078,2506.3,2506.0,0.39909]
[1728310828384,3.60686,2506.3,2506.0,0.39909]
[1728310828690,3.2078,2506.3,2505.5,4.32971568]
[1728310828886,0.39907,2506.2,2505.6,0.39915]
[1728310829093,0.39911,2506.0,2505.6,0.39915]
[1728310829307,0.99767,2506.2,2505.6,0.39915]
[1728310829487,3.2078,2506.3,2505.4,3.2078]
[1728310829684,3.60686,2506.3,2505.5,0.39918]
[1728310829884,3.2078,2506.3,2505.5,4.16933115]
[1728310830089,3.60686,2506.3,2505.5,5.16725115]
[1728310830292,0.39909,2506.1,2505.8,0.39911]
[1728310830594,0.39908,2506.2,2505.9,0.3991]
[1728310830793,0.39907,2506.2,2505.9,0.3991]
[1728310830986,3.60686,2506.3,2506.1,0.39907]
[1728310831192,3.60686,2506.3,2506.0,0.39908]
[1728310831390,3.2078,2506.3,2506.2,0.39907]
[1728310831695,0.39904,2506.4,2506.2,0.39906]
[1728310831888,0.39905,2506.3,2506.1,0.39907]
[1728310832087,4.2053,2506.7,2505.7,7.5378]
[1728310832088,0.99751,2506.6,2505.7,7.5378]
[1728310832288,0.39908,2506.2,2506.0,0.39909]
[1728310832591,0.39903,2506.5,2506.3,0.39904]
[1728310832788,3.6068,2506.7,2506.5,0.39901]
[1728310832990,7.1974,2506.7,2506.0,0.99775]
[1728310833189,3.2078,2506.7,2505.8,0.5275]
[1728310833400,3.2078,2506.7,2505.8,1.52531]
[1728310833401,0.39904,2506.4,2505.8,1.52531]
[1728310833592,3.2078,2506.7,2506.0,7.5378]
[1728310833790,0.39893,2507.1,2506.9,0.39895]
[1728310834091,0.39902,2506.5,2506.4,0.39903]
[1728310834285,0.39899,2506.7,2505.7,5.32784]
[1728310834485,3.2078,2506.4,2505.6,3.2078]
[1728310834691,3.2078,2506.4,2506.0,0.39909]
[1728310834887,0.39907,2506.2,2506.1,0.39908]
[1728310835085,3.2078,2506.4,2506.1,0.39908]
[1728310835388,3.7499,2506.7,2505.7,4.33]
[1728310835588,0.39901,2506.6,2506.0,0.99773]
[1728310835789,3.7499,2506.7,2505.9,7.64265317]
[1728310835998,3.7499,2506.7,2506.0,0.99775]
[1728310836197,3.7499,2506.7,2506.0,4.26483657]
[1728310836388,0.39905,2506.4,2506.3,0.39905]
[1728310836592,0.99751,2506.6,2506.0,4.26483657]
[1728310836885,0.39902,2506.5,2506.4,0.39903]
[1728310837095,0.39902,2506.5,2506.4,0.39902]
[1728310837296,3.9896,2506.5,2505.9,4.20557]
[1728310837591,0.39901,2506.6,2506.5,0.39901]
[1728310837991,3.7499,2506.7,2505.9,4.20558]
[1728310838186,3.7499,2506.7,2505.6,3.2078]
[1728310838187,0.39909,2506.1,2505.6,3.2078]
[1728310838394,3.7499,2506.7,2505.6,3.2078]
[1728310838395,0.99767,2506.2,2505.6,3.2078]
[1728310838596,3.2078,2506.3,2505.6,3.2078]
[1728310838597,0.39913,2505.8,2505.7,0.39914]
[1728310838799,0.5156,2506.1,2505.3,0.99803]
[1728310839007,0.5156,2506.1,2506.0,0.3991]
[1728310839193,0.5156,2506.1,2505.7,0.99785]
[1728310839389,0.5156,2506.1,2506.0,0.3991]
[1728310839590,0.5156,2506.1,2505.9,0.3991]
[1728310839591,4.506,2506.1,2505.9,0.3991]
[1728310839900,3.7499,2506.7,2506.2,0.39907]
[1728310840101,3.7499,2506.7,2506.6,0.399]
[1728310840395,3.2078,2506.7,2506.6,0.399]
[1728310840596,3.2078,2506.7,2506.6,4.3886]
[1728310841102,3.7333,2507.2,2506.3,0.99761]
[1728310841596,0.99743,2506.8,2506.2,0.39906]
[1728310841799,0.99755,2506.5,2505.8,0.99783]
[1728310841997,3.2078,2506.5,2505.7,3.2078]
[1728310842193,3.2078,2506.5,2506.3,0.39904]
[1728310842194,0.39904,2506.4,2506.3,0.39904]
[1728310842400,3.7272,2506.5,2506.3,0.39904]
[1728310842593,3.7272,2506.5,2505.7,3.2078]
[1728310842794,0.39906,2506.3,2506.1,0.39907]
[1728310842998,0.39906,2506.3,2505.9,0.39911]
[1728310843196,4.72476,2506.5,2506.1,0.39907]
[1728310843393,4.72476,2506.5,2505.7,3.2078]
[1728310843394,0.39904,2506.4,2506.3,0.39904]
[1728310843588,8.11582,2506.5,2506.4,0.39903]
[1728310844096,13.7168,2506.5,2506.4,0.39903]
[1728310844599,3.7272,2506.5,2506.4,0.39903]
[1728310844802,3.7272,2506.5,2505.7,7.5378]
[1728310845000,3.7272,2506.5,2506.2,0.39906]
[1728310845297,3.7272,2506.5,2506.4,0.39903]
[1728310845697,7.7168,2506.5,2506.4,0.39903]
[1728310846091,3.7272,2506.5,2506.4,0.39903]
[1728310846296,8.11582,2506.5,2506.3,0.39904]
[1728310846506,3.7272,2506.5,2506.4,0.39903]
[1728310847293,7.7168,2506.5,2505.9,0.99779]
[1728310847498,0.5194,2506.5,2506.4,0.39903]
[1728310847903,0.5194,2506.5,2505.9,3.2078]
[1728310848103,0.5194,2506.5,2506.4,0.39903]
[1728310848297,3.2078,2506.9,2506.0,4.49315839]
[1728310848607,0.39894,2507.0,2506.5,0.99753]
[1728310848799,0.39894,2507.0,2506.3,0.99761]
[1728310848800,0.39898,2506.8,2506.3,0.99761]
[1728310849100,0.39897,2506.8,2506.7,0.39898]
[1728310849307,0.39898,2506.8,2506.6,0.39899]
[1728310849499,0.39897,2506.9,2506.7,0.39898]
[1728310849805,0.99738,2507.0,2506.3,0.99761]
[1728310850199,1.31600616,2507.1,2506.3,3.2078]
[1728310850402,1.19192616,2507.1,2507.0,0.39894]
[1728310850695,3.7185,2507.2,2507.1,0.39892]
[1728310850696,0.5107,2507.2,2507.1,0.39892]
[1728310851000,0.5107,2507.2,2507.0,0.39893]
[1728310851001,0.39893,2507.1,2507.0,0.39893]
[1728310851307,0.5107,2507.2,2506.7,0.99746]
[1728310851510,0.39894,2507.0,2506.9,0.39895]
[1728310851803,0.5107,2507.2,2506.5,0.5054]
[1728310851804,0.5107,2507.2,2506.5,2.5005]
[1728310851996,0.79359927,2507.4,2507.3,0.39889]
[1728310852196,3.2078,2507.9,2507.2,0.99724]
[1728310852397,0.79396894,2507.8,2507.3,0.99723]
[1728310852699,0.79396894,2507.8,2507.7,0.39883]
[1728310853099,4.78196894,2507.8,2507.7,0.39883]
[1728310853300,5.18078894,2507.8,2507.6,0.39883]
[1728310853604,3.2078,2507.9,2507.6,0.39883]
[1728310853605,0.79396894,2507.7,2507.6,0.39883]
[1728310853806,0.79396894,2507.8,2507.7,0.39883]
[1728310854202,0.5272,2508.1,2508.0,0.39878]
[1728310854404,0.5272,2508.1,2507.7,0.39882]
[1728310854609,0.99699,2507.9,2507.5,0.39886]
[1728310854906,0.99699,2507.9,2507.4,0.39887]
[1728310854907,0.39885,2507.6,2507.4,0.39887]
[1728310855108,0.39887,2507.5,2507.3,0.39889]
[1728310855305,4.4732,2507.6,2507.3,0.39889]
[1728310855498,4.4732,2507.6,2506.8,4.7059]
[1728310855499,0.39887,2507.4,2507.2,0.3989]
[1728310855703,1.27916894,2507.6,2507.2,0.3989]
[1728310855900,0.39893,2507.1,2506.9,0.39894]
[1728310856107,4.20499,2507.4,2506.8,3.2078]
[1728310856307,4.20499,2507.4,2506.6,0.9975]
[1728310856308,3.2078,2507.0,2506.6,0.10423]
[1728310856503,3.2078,2507.0,2506.9,0.39895]
[1728310856815,0.39896,2506.9,2506.7,0.39897]
[1728310857109,0.79509681,2506.9,2506.2,1.49837]
[1728310857305,3.60679,2506.7,2506.6,0.39899]
[1728310857505,4.00289681,2506.7,2506.4,0.39902]
[1728310857711,4.00289681,2506.7,2506.0,0.99772]
[1728310857712,0.79515066,2506.6,2506.0,0.99772]
[1728310857902,3.2078,2506.4,2505.9,0.99777]
[1728310858105,3.2078,2506.4,2506.3,0.39905]
[1728310858506,0.39905,2506.3,2506.2,0.39905]
[1728310858699,3.60683,2506.4,2506.3,0.39905]
[1728310859098,3.2078,2506.4,2506.3,0.39905]
[1728310860206,3.2078,2506.4,2506.3,4.38865]
[1728310860504,3.2078,2506.4,2506.3,0.39905]
[1728310861213,0.39899,2506.8,2506.6,0.39899]
[1728310861509,0.79517301,2506.9,2506.8,0.39897]
[1728310862100,0.79517301,2506.9,2506.8,4.38777]
[1728310862305,3.2078,2507.0,2506.9,0.39895]
[1728310863102,4.00296313,2507.0,2506.9,0.39895]
[1728310863314,7.99176313,2507.0,2506.9,0.39895]
[1728310863504,4.00296313,2507.0,2506.9,0.39895]
[1728310864417,4.00296313,2507.0,2506.9,4.38775]
[1728310864713,3.2078,2507.0,2506.9,8.9262548]
[1728310864916,2.28209,2507.0,2506.9,0.39895]
[1728310865114,1.0034,2507.8,2507.7,0.39883]
[1728310865115,4.2112,2507.8,2507.7,0.39883]
[1728310865314,4.2112,2507.8,2506.7,0.5075]
[1728310865315,0.75221589,2507.7,2506.7,0.5075]
[1728310865509,0.39888,2507.4,2507.3,0.39889]
[1728310865809,4.78356824,2507.4,2507.3,0.39889]
[1728310866408,0.79556824,2507.4,2507.3,0.39889]
[1728310866606,0.79556824,2507.4,2507.3,8.71689]
[1728310866808,1.54780315,2507.9,2507.8,0.39881]
[1728310867706,0.79556824,2507.9,2507.8,4.38601]
[1728310868109,1.54765057,2508.2,2508.1,0.39876]
[1728310868310,0.79556824,2508.2,2508.1,0.39876]
[1728310868611,0.79556824,2508.2,2507.7,0.99704]
[1728310868813,0.79556824,2508.2,2507.5,3.60665]
[1728310868814,0.99699,2507.9,2507.5,3.60665]
[1728310869016,0.99699,2507.9,2506.9,3.2078]
[1728310869017,0.99709,2507.7,2506.9,3.2078]
[1728310869218,0.99709,2507.7,2506.8,1.50671]
[1728310869219,0.99713,2507.6,2506.8,1.50671]
[1728310869519,0.79556824,2507.6,2507.5,0.39886]
[1728310869709,1.0124,2507.8,2506.9,7.5378]
[1728310869710,3.2078,2507.7,2506.9,7.5378]
[1728310869905,3.2078,2507.7,2507.1,0.39891]
[1728310869906,0.39889,2507.3,2507.1,0.39891]
[1728310870120,0.39889,2507.3,2507.0,0.39894]
[1728310870310,3.2078,2507.4,2506.6,0.99749]
[1728310870509,3.2078,2507.4,2506.5,3.7145]
[1728310870510,0.39891,2507.2,2506.9,0.39895]
[1728310870714,3.2078,2507.1,2506.5,1.50424]
[1728310870915,0.79556824,2507.0,2506.9,0.39895]
[1728310871921,1.5483836,2507.3,2507.2,0.39891]
[1728310872118,1.5483836,2507.3,2506.9,0.39895]
[1728310872119,1.5483836,2507.6,2506.9,0.39895]
[1728310872315,0.39887,2507.5,2507.4,0.39886]
[1728310872518,1.5483836,2507.6,2506.9,0.39895]
[1728310872519,1.9472336,2507.6,2507.5,0.39886]
[1728310872720,0.39887,2507.5,2507.4,0.39887]
[1728310873022,1.5483836,2507.6,2506.6,4.33]
[1728310873224,1.5483836,2507.6,2507.5,0.39886]
[1728310873522,7.5483836,2507.6,2507.0,4.46054681]
[1728310873718,0.39892,2507.2,2507.1,0.39891]
[1728310874130,0.79556824,2507.3,2507.2,0.39891]
[1728310874832,0.79556824,2507.3,2507.2,4.38771]
[1728310875126,0.39873,2508.3,2507.8,0.99703]
[1728310875321,0.39877,2508.1,2508.0,0.39877]
[1728310875623,0.75270126,2508.3,2507.6,0.99711]
[1728310875828,0.75270126,2508.3,2508.2,0.39875]
[1728310876423,0.89752,2508.4,2508.3,0.39873]
[1728310876720,3.7066,2508.4,2507.7,4.33]
[1728310876923,1.74954126,2508.3,2507.6,0.99711]
[1728310877121,1.74954126,2508.3,2507.7,0.99707]
[1728310877425,1.15144126,2508.3,2508.2,0.39875]
[1728310877626,0.75270126,2508.3,2507.4,4.33]
[1728310877923,0.75270126,2508.3,2508.2,0.39875]
[1728310878625,3.2078,2508.4,2508.3,0.39873]
[1728310878821,3.96010035,2508.4,2508.3,4.38513]
[1728310879224,3.96010035,2508.4,2508.3,0.39873]
[1728310879722,0.75230035,2508.4,2508.3,0.39873]
[1728310880024,0.75230035,2508.6,2508.5,0.3987]
[1728310881419,0.39871,2508.5,2508.3,0.39872]
[1728310881622,0.39875,2508.2,2508.1,0.39876]
[1728310881925,0.39877,2508.1,2508.0,0.39878]
[1728310882119,0.39877,2508.1,2507.3,0.39889]
[1728310882120,0.39885,2507.6,2507.3,0.39889]
[1728310882321,4.20484,2507.8,2507.1,0.99731]
[1728310882525,0.39885,2507.6,2507.1,0.99731]
[1728310882728,0.74246824,2507.7,2507.1,0.99731]
[1728310883030,3.2078,2508.5,2507.7,0.39883]
[1728310883226,0.742408,2508.4,2508.3,0.39873]
[1728310883749,0.39874,2508.3,2508.2,0.39874]
[1728310883920,0.742408,2508.4,2508.3,0.39873]
[1728310884121,0.742408,2508.4,2507.9,0.99697]
[1728310884122,1.141128,2508.4,2507.9,0.99697]
[1728310884327,0.742408,2508.4,2508.3,0.39873]
[1728310884825,0.528,2508.9,2508.3,3.9864]
[1728310885029,4.2435,2509.6,2508.7,4.33]
[1728310885223,0.74175291,2509.5,2509.2,0.39858]
[1728310885424,0.74175291,2509.5,2508.7,4.33]
[1728310885425,0.74175291,2509.5,2508.8,4.2548274]
[1728310885627,0.74175291,2509.5,2509.3,0.39857]
[1728310885827,0.74175291,2509.5,2508.8,4.2548274]
[1728310886129,4.2435,2509.6,2509.3,0.39857]
[1728310886330,4.2435,2509.6,2508.8,4.2548274]
[1728310886532,4.2435,2509.6,2509.2,0.39858]
[1728310886533,4.64203,2509.6,2509.2,0.39858]
[1728310886725,4.2435,2509.6,2508.8,4.2548274]
[1728310886924,4.2435,2509.6,2508.9,0.9966]
[1728310887126,3.2078,2509.6,2509.5,0.39854]
[1728310887529,13.1926,2509.6,2508.7,8.53447]
[1728310887727,3.2078,2509.6,2508.7,3.2078]
[1728310888029,0.39851,2509.8,2509.0,0.99655]
[1728310888227,0.39851,2509.8,2508.8,11.86294699]
[1728310888228,0.74111706,2509.9,2509.2,4.33]
[1728310888418,3.4078,2510.0,2509.1,8.30112784]
[1728310888630,3.2078,2509.8,2508.7,3.2078]
[1728310888835,0.39857,2509.3,2508.6,0.99668]
[1728310889030,3.2078,2509.4,2509.0,0.39861]
[1728310889225,0.39858,2509.3,2508.5,5.88502]
[1728310889436,0.39858,2509.3,2508.5,4.8883]
[1728310889733,3.2078,2509.4,2508.8,0.39864]
[1728310889734,0.39861,2509.1,2508.8,0.39864]
[1728310889934,3.2078,2509.4,2508.4,3.2078]
[1728310890127,0.3986,2509.2,2508.9,0.39862]
[1728310890329,3.60643,2509.0,2508.7,0.39866]
[1728310890531,3.2078,2509.0,2508.9,0.39864]
[1728310891540,0.39868,2508.7,2508.2,0.39875]
[1728310891748,3.2078,2508.6,2507.7,8.53483]
[1728310892032,0.39872,2508.4,2507.8,0.39881]
[1728310892237,0.39872,2508.4,2508.1,0.39875]
[1728310892541,3.2078,2508.6,2508.5,0.3987]
[1728310892836,1.0781,2508.9,2508.5,0.3987]
[1728310892837,0.5264,2508.9,2508.5,0.3987]